bitfinex-derivatives/quotes_SOLF0:USTF0_20241218
["timestamp","ask_amount","ask_price","bid_price","bid_amount"]
[1734509835941,2.3128,216.2,216.14,1.5784]
[1734509836239,2.3129,216.19,216.13,69.22350892]
[1734509836442,2.18,216.21,216.14,4.69786571]
[1734509836631,2.18,216.21,216.13,69.22350892]
[1734509836837,4.4927,216.21,216.16,2.3132]
[1734509837535,2.3128,216.2,216.14,2.3133]
[1734509837741,2.18,216.21,216.14,2.3133]
[1734509838240,2.18,216.21,216.13,74.85424314]
[1734509838436,2.3128,216.2,216.13,74.85424314]
[1734509839537,2.3128,216.2,216.16,2.3132]
[1734509839943,2.3128,216.2,216.13,74.85424314]
[1734509840436,2.3128,216.2,216.15,2.3133]
[1734509841234,4.4927,216.21,216.16,2.3132]
[1734509841435,2.18,216.21,216.13,74.85424314]
[1734509841940,2.3129,216.19,216.13,74.85424314]
[1734509842842,10.61621066,216.27,216.13,74.85424314]
[1734509843037,2.18,216.26,216.16,9.03141066]
[1734509843543,2.3125,216.23,216.18,2.313]
[1734509843846,2.18,216.26,216.18,2.313]
[1734509844046,2.3126,216.23,216.18,2.313]
[1734509845041,2.18,216.3,216.21,9.03141066]
[1734509845546,4.4918,216.3,216.25,2.3121]
[1734509845844,2.18,216.3,216.24,9.03141066]
[1734509846539,2.18,216.3,216.21,9.03141066]
[1734509847142,2.18,216.3,216.18,9.03141066]
[1734509847743,2.18,216.3,216.21,9.03141066]
[1734509848141,2.18,216.3,216.24,9.03141066]
[1734509848546,2.18,216.3,216.27,2.312]
[1734509848745,2.18,216.3,216.24,9.03141066]
[1734509849148,2.18,216.3,216.25,2.3122]
[1734509849344,2.18,216.3,216.24,9.03141066]
[1734509850052,2.18,216.3,216.27,2.3119]
[1734509851350,4.4917,216.31,216.28,2.3119]
[1734509851549,4.4917,216.31,216.24,9.03141066]
[1734509852055,4.4917,216.31,216.26,2.312]
[1734509852448,2.3117,216.3,216.26,2.312]
[1734509853051,2.3117,216.3,216.27,2.312]
[1734509854551,2.3119,216.29,216.25,2.3122]
[1734509854747,2.18,216.31,216.21,10.56341066]
[1734509854951,2.18,216.31,216.21,1.532]
[1734509855150,2.18,216.31,216.18,9.03141066]
[1734509855451,2.18,216.31,216.16,3.0566]
[1734509855452,9.03141066,216.3,216.19,4.68234772]
[1734509855657,10.58751066,216.3,216.16,3.0566]
[1734509855954,10.58751066,216.3,216.17,2.313]
[1734509855955,2.3124,216.24,216.17,2.313]
[1734509856155,2.18,216.23,216.16,1.5703]
[1734509856351,2.18,216.22,216.16,1.5703]
[1734509856551,2.18,216.21,216.16,1.5703]
[1734509857245,2.3129,216.19,216.16,3.8835]
[1734509857450,2.3129,216.19,216.16,1.5703]
[1734509857651,2.3129,216.19,216.14,1.4882]
[1734509857846,2.3129,216.19,216.15,2.3132]
[1734509858347,2.18,216.21,216.15,2.3132]
[1734509858550,2.3131,216.17,216.13,60.19209826]
[1734509858755,2.18,216.16,216.13,60.19209826]
[1734509859554,2.18,216.16,216.12,2.3135]
[1734509859858,2.18,216.16,216.13,4.69375069]
[1734509860157,2.18,216.16,216.12,2.3135]
[1734509860347,2.18,216.16,216.13,4.69656846]
[1734509860546,2.18,216.16,216.12,2.3135]
[1734509860753,2.18,216.16,216.13,4.69643191]
[1734509861057,2.18,216.16,216.12,2.3135]
[1734509861257,2.18,216.16,216.13,4.69887349]
[1734509861458,4.4932,216.16,216.12,2.3135]
[1734509861658,4.4932,216.16,216.13,4.69873594]
[1734509861957,4.4932,216.16,216.12,2.3135]
[1734509862155,4.4932,216.16,216.13,4.69907097]
[1734509862361,4.4932,216.16,216.12,2.3135]
[1734509862651,2.3133,216.15,216.13,4.70078403]
[1734509862852,2.18,216.16,216.1,2.3138]
[1734509863052,2.18,216.16,216.11,4.70191907]
[1734509863455,2.18,216.16,216.1,2.3138]
[1734509863658,2.3133,216.15,216.12,4.70422316]
[1734509863957,2.3133,216.15,216.1,2.3138]
[1734509864257,2.18,216.16,216.11,4.70400693]
[1734509864557,2.18,216.16,216.1,2.3138]
[1734509864856,2.18,216.16,216.11,4.70639056]
[1734509865058,2.18,216.16,216.1,2.3138]
[1734509865258,2.18,216.16,216.11,4.70641647]
[1734509865553,2.18,216.16,216.07,0.25863]
[1734509865758,2.18,216.16,216.08,4.70710439]
[1734509865950,2.18,216.16,216.07,0.25863]
[1734509867254,2.3139,216.1,216.07,0.25863]
[1734509867449,4.4939,216.1,216.07,0.25863]
[1734509868060,4.4939,216.1,216.03,14.71062187]
[1734509868371,4.4939,216.1,216.06,4.71292503]
[1734509868660,4.4939,216.1,216.07,2.3142]
[1734509869960,4.4939,216.1,216.08,4.71866458]
[1734509869961,2.18,216.1,216.08,4.71866458]
[1734509870162,2.18,216.1,216.08,2.314]
[1734509872067,2.18,216.1,216.09,4.72115546]
[1734509872260,2.18,216.1,216.09,4.72268901]
[1734509872565,2.18,216.1,216.07,8.10638397]
[1734509872765,2.18,216.1,216.08,4.72290536]
[1734509873066,2.18,216.1,216.09,4.72265145]
[1734509873964,3.0602,216.19,216.09,10.51483542]
[1734509874163,2.18,216.18,216.13,2.3135]
[1734509874757,2.18,216.17,216.13,2.3135]
[1734509875064,5.79218397,216.15,216.09,5.79218397]
[1734509875263,5.79218397,216.15,216.1,4.72113288]
[1734509875464,5.79218397,216.15,216.11,4.72113288]
[1734509875666,5.79218397,216.15,216.09,5.79218397]
[1734509875867,5.79218397,216.15,216.1,4.72189982]
[1734509876063,5.79218397,216.15,216.11,4.72189982]
[1734509876368,5.79218397,216.15,216.09,5.79218397]
[1734509876558,2.3135,216.13,216.1,2.3138]
[1734509876763,2.18,216.12,216.1,7.03598861]
[1734509876969,2.18,216.12,216.1,2.3138]
[1734509879468,2.18,216.12,216.11,8.10598397]
[1734509880170,2.3132,216.16,216.11,8.10598397]
[1734509880171,2.18,216.16,216.11,10.51252329]
[1734509880368,2.18,216.16,216.11,5.79218397]
[1734509880769,2.18,216.16,216.13,2.3135]
[1734509881668,4.4933,216.16,216.13,2.3135]
[1734509882666,2.18,216.16,216.11,5.79218397]
[1734509882871,5.79218397,216.15,216.04,7.66080928]
[1734509883170,5.79218397,216.15,216.08,5.79218397]
[1734509884172,2.3136,216.13,216.09,2.314]
[1734509884776,2.3138,216.11,216.08,2.3141]
[1734509885076,4.4938,216.11,216.08,2.3141]
[1734509887870,2.3139,216.1,216.07,8.10638397]
[1734509888474,4.4938,216.11,216.08,2.3141]
[1734509889073,7.97218397,216.11,215.99,3.7362]
[1734509889377,7.97218397,216.11,216.04,5.79218397]
[1734509889577,7.97218397,216.11,216.05,4.71371424]
[1734509889772,7.97218397,216.11,216.04,5.79218397]
[1734509890476,2.3142,216.08,216.05,2.3143]
[1734509890773,7.97218397,216.11,216.04,5.79218397]
[1734509891574,7.97218397,216.11,216.05,2.3144]
[1734509892277,7.97218397,216.11,216.04,2.3144]
[1734509893068,7.97218397,216.11,216.03,5.79218397]
[1734509893270,2.3142,216.08,216.05,2.3144]
[1734509896073,2.3142,216.08,215.99,1.5562]
[1734509896074,2.3146,216.04,216.01,2.3147]
[1734509896280,2.18,216.06,215.99,7.34838397]
[1734509896472,2.18,216.05,216.0,4.71933492]
[1734509896676,2.18,216.05,215.99,9.66338397]
[1734509896677,2.3147,216.03,215.99,9.66338397]
[1734509897272,2.3147,216.03,216.0,2.3149]
[1734509899084,2.18,216.05,215.98,0.37846]
[1734509899085,2.315,216.0,215.98,0.37846]
[1734509899290,2.315,216.0,215.99,4.72428889]
[1734509899481,4.495,216.0,215.99,4.72428889]
[1734509899674,2.18,216.0,215.99,4.72428889]
[1734509900678,2.18,216.0,215.99,4.72951259]
[1734509902880,2.3148,216.02,215.99,4.72951259]
[1734509903180,2.3148,216.02,215.98,2.3151]
[1734509903387,2.3148,216.02,215.99,4.73156317]
[1734509903687,2.18,216.03,215.98,2.3151]
[1734509903986,2.3148,216.01,215.99,4.73134829]
[1734509904292,2.3148,216.01,216.0,4.73134829]
[1734509906385,4.4947,216.03,216.0,4.73134829]
[1734509906592,4.4947,216.03,215.99,8.10718397]
[1734509906593,2.18,216.03,215.99,5.79218397]
[1734509906791,2.18,216.05,216.01,5.79218397]
[1734509907084,5.79218397,216.1,216.03,5.79218397]
[1734509907293,2.18,216.09,216.04,4.73236555]
[1734509907487,2.18,216.09,216.05,4.73236555]
[1734509907688,2.18,216.09,216.04,2.3144]
[1734509907993,2.18,216.09,216.05,4.73153507]
[1734509908386,2.3143,216.07,216.04,2.3144]
[1734509908586,2.18,216.09,216.05,4.7331736]
[1734509908793,2.18,216.09,216.03,8.10678397]
[1734509908992,2.18,216.09,216.04,4.73336644]
[1734509909294,5.79218397,216.08,216.05,4.73336644]
[1734509909491,2.3143,216.06,216.03,2.3146]
[1734509909691,5.79218397,216.08,216.04,4.73436993]
[1734509909990,5.79218397,216.08,216.01,2.3148]
[1734509910190,5.79218397,216.08,215.99,5.79218397]
[1734509910388,5.79218397,216.06,216.0,4.73526442]
[1734509910584,5.79218397,216.06,216.01,4.73526442]
[1734509910790,5.79218397,216.06,215.98,5.79218397]
[1734509910991,2.3149,216.0,215.99,4.73734828]
[1734509914092,2.3149,216.0,215.99,9.47320938]
[1734509914298,2.18,216.07,215.99,9.47320938]
[1734509914491,2.18,216.07,216.03,5.79218397]
[1734509914692,2.18,216.07,216.04,4.73293042]
[1734509914990,2.18,216.07,216.03,5.79218397]
[1734509915190,4.4943,216.07,216.04,7.04785443]
[1734509915398,2.18,216.07,216.04,2.3144]
[1734509916497,2.3143,216.06,216.04,2.3144]
[1734509917194,2.3143,216.06,216.05,4.73337383]
[1734509917499,2.3143,216.06,216.04,2.3144]
[1734509917697,2.314,216.09,216.06,2.3143]
[1734509917995,2.314,216.09,216.05,10.52527834]
[1734509917996,92.63352522,216.15,216.02,2.18]
[1734509918301,2.3138,216.11,216.05,8.10648397]
[1734509918602,5.79218397,216.13,216.06,4.73262725]
[1734509918797,5.79218397,216.13,216.05,8.10648397]
[1734509918998,2.314,216.1,216.06,4.73274491]
[1734509919198,2.314,216.1,216.05,8.10648397]
[1734509919497,2.314,216.1,216.06,4.73349602]
[1734509919693,5.79218397,216.13,216.05,8.10648397]
[1734509919694,2.314,216.09,216.05,8.10648397]
[1734509919902,2.314,216.09,216.06,4.73345195]
[1734509920200,2.314,216.09,216.06,2.3143]
[1734509920401,7.97218397,216.14,216.07,5.79218397]
[1734509920599,7.97218397,216.14,216.08,2.3141]
[1734509920793,7.97218397,216.14,216.07,5.79218397]
[1734509921098,7.97218397,216.14,216.08,4.73272868]
[1734509921298,7.97218397,216.14,216.07,5.79218397]
[1734509921601,2.3138,216.11,216.08,7.0470128]
[1734509921797,2.3138,216.11,216.08,2.3141]
[1734509922297,2.18,216.14,216.07,5.79218397]
[1734509922606,2.18,216.14,216.1,2.3139]
[1734509923399,2.3136,216.13,216.1,2.3139]
[1734509923599,2.3136,216.13,216.11,4.73237809]
[1734509927206,4.493,216.18,216.15,2.3133]
[1734509927400,2.18,216.18,216.04,2.18]
[1734509927601,2.18,216.18,216.13,5.79218397]
[1734509927798,2.18,216.18,216.15,2.3133]
[1734509928201,2.18,216.18,216.13,5.79218397]
[1734509928410,2.18,216.18,216.14,4.73197393]
[1734509928600,2.18,216.18,216.04,2.18]
[1734509928806,2.18,216.18,216.12,5.79218397]
[1734509929002,4.4931,216.18,216.15,2.3133]
[1734509929310,86.80876318,216.24,216.16,5.79218397]
[1734509929311,92.60094715,216.24,216.16,5.79218397]
[1734509929507,2.18,216.23,216.16,10.52233663]
[1734509929705,2.18,216.23,216.17,4.73015266]
[1734509929911,4.4926,216.22,216.18,7.04178032]
[1734509930506,4.4926,216.22,216.18,2.313]
[1734509931110,2.3124,216.24,216.19,4.72585952]
[1734509931306,2.3124,216.24,216.18,5.79218397]
[1734509931506,2.3124,216.24,216.19,4.72293182]
[1734509931706,2.3124,216.24,216.18,5.79218397]
[1734509931910,2.3124,216.24,216.2,2.3127]
[1734509932509,5.79218397,216.24,216.18,2.3129]
[1734509932904,2.18,216.25,216.18,2.3129]
[1734509933104,2.3126,216.22,216.18,2.3129]
[1734509933303,2.3126,216.22,216.19,2.3129]
[1734509933716,7.97218397,216.25,216.18,5.79218397]
[1734509933915,2.3124,216.24,216.2,2.3128]
[1734509934716,2.18,216.27,216.23,2.3124]
[1734509935410,4.4922,216.27,216.23,2.3124]
[1734509935715,5.79218397,216.26,216.18,5.79218397]
[1734509937214,5.79218397,216.24,216.14,2.18]
[1734509937415,5.79218397,216.22,216.15,10.50503401]
[1734509937616,2.18,216.21,216.16,4.71285004]
[1734509937815,2.18,216.21,216.15,5.79218397]
[1734509938318,2.18,216.21,216.12,2.9862]
[1734509938626,5.79218397,216.2,216.13,4.7128857]
[1734509938914,2.18,216.21,216.12,5.79218397]
[1734509938915,2.3134,216.15,216.12,5.79218397]
[1734509939216,2.3134,216.15,216.1,5.79218397]
[1734509939422,2.3134,216.15,216.11,4.71409924]
[1734509939620,2.3134,216.15,216.09,1.82238]
[1734509939919,2.3136,216.13,216.09,2.55938]
[1734509941819,7.97218397,216.16,216.09,0.24538]
[1734509941820,2.3139,216.1,216.09,0.24538]
[1734509942214,2.18,216.11,216.09,0.24538]
[1734509946619,2.3139,216.1,216.09,0.24538]
[1734509950921,4.4938,216.11,216.09,0.24538]
[1734509951124,2.18,216.11,216.09,0.24538]
[1734509952926,2.3139,216.1,216.09,0.24538]
[1734509957626,2.3144,216.05,216.03,5.79218397]
[1734509957830,4.4944,216.05,216.03,5.79218397]
[1734509959130,2.18,216.05,216.04,2.3145]
[1734509959330,2.9831,216.17,216.03,5.79218397]
[1734509959532,5.79218397,216.14,216.06,5.79218397]
[1734509959728,2.314,216.09,216.06,8.10648397]
[1734509960136,2.18,216.13,215.99,7.61296441]
[1734509960137,2.18,216.13,216.08,5.79218397]
[1734509960635,2.18,216.13,216.1,5.79218397]
[1734509960933,4.4935,216.14,216.1,8.10598397]
[1734509961326,2.3136,216.13,216.1,8.10598397]
[1734509961831,2.18,216.14,216.04,2.18]
[1734509961832,2.3137,216.12,216.04,2.18]
[1734509962033,2.3137,216.12,216.08,5.79218397]
[1734509963135,2.3139,216.11,216.02,3.0339]
[1734509963334,2.3139,216.11,216.08,5.79218397]
[1734509965935,2.3139,216.11,216.08,8.10628397]
[1734509967334,4.4937,216.12,216.09,7.04053118]
[1734509967638,2.18,216.12,216.08,5.79218397]
[1734509967838,2.18,216.12,216.1,5.79218397]
[1734509968033,2.18,216.12,216.1,8.10608397]
[1734509968233,2.18,216.12,216.1,5.79218397]
[1734509968730,4.4938,216.12,216.1,5.79218397]
[1734509968934,2.18,216.12,216.03,1.5456]
[1734509969229,2.18,216.12,216.09,5.79218397]
[1734509970232,4.4937,216.12,216.09,8.10618397]
[1734509971140,2.3138,216.11,216.09,5.79218397]
[1734509971336,2.3138,216.11,216.08,2.3141]
[1734509971940,2.18,216.12,216.06,8.10638397]
[1734509972141,2.18,216.12,216.07,4.72842887]
[1734509972437,2.18,216.12,216.08,4.72842887]
[1734509972637,2.18,216.12,216.06,8.10638397]
[1734509972938,7.97218397,216.12,216.07,4.72870699]
[1734509973132,7.97218397,216.12,215.92,68.08008416]
[1734509973133,5.79218397,216.1,216.03,5.79218397]
[1734509973337,5.79218397,216.1,215.98,2.18]
[1734509973338,5.79218397,216.1,216.04,4.73050784]
[1734509973538,5.79218397,216.1,216.05,4.73050784]
[1734509973842,5.79218397,216.1,216.03,8.10678397]
[1734509974041,5.79218397,216.1,216.04,4.73099084]
[1734509974342,2.3144,216.05,216.03,5.79218397]
[1734509974537,2.18,216.07,216.03,5.79218397]
[1734509974736,2.3143,216.06,216.04,4.73144342]
[1734509974940,2.3143,216.06,216.03,8.10668397]
[1734509975339,2.3143,216.06,216.04,4.73235517]
[1734509975545,2.18,216.07,216.03,5.79218397]
[1734509975743,2.3143,216.06,216.03,5.79218397]
[1734509976140,2.3143,216.06,216.04,4.7338795]
[1734509976345,2.3143,216.06,216.03,8.10678397]
[1734509976735,2.3143,216.06,216.04,4.7337883]
[1734509976935,2.3143,216.06,216.03,8.10678397]
[1734509977145,2.3143,216.06,216.04,4.73385516]
[1734509977341,2.3143,216.06,216.03,8.10678397]
[1734509977539,2.3143,216.06,216.04,4.73487455]
[1734509977736,2.3143,216.06,216.03,8.10678397]
[1734509977937,2.3143,216.06,216.04,4.73479054]
[1734509978239,2.3143,216.06,216.03,8.10678397]
[1734509979044,2.18,216.07,216.03,5.79218397]
[1734509979342,2.3143,216.06,216.04,7.05108502]
[1734509979542,2.3143,216.06,216.04,2.3144]
[1734509980140,2.3143,216.06,216.03,8.10678397]
[1734509980542,2.3143,216.06,216.04,4.74072344]
[1734509980743,2.3143,216.06,216.03,8.10678397]
[1734509980940,2.3144,216.05,216.04,4.74112113]
[1734509982347,2.3143,216.06,216.04,4.74112113]
[1734509982546,2.3143,216.06,216.05,4.74112113]
[1734509983438,2.3143,216.06,216.05,4.74756929]
[1734509986050,2.3143,216.06,216.04,5.79218397]
[1734509986256,2.3143,216.06,216.05,4.74634794]
[1734509989349,2.18,216.07,216.03,5.79218397]
[1734509989350,2.3144,216.05,216.03,5.79218397]
[1734509989652,2.18,216.07,216.04,4.74603799]
[1734509990054,2.3144,216.05,216.04,4.74603799]
[1734509990254,2.18,216.07,216.04,4.74712048]
[1734509990663,5.79218397,216.06,215.96,5.59184996]
[1734509990859,5.79218397,216.0,215.97,4.74654944]
[1734509991064,4.4951,215.99,215.98,4.74654944]
[1734509991769,2.18,215.99,215.92,8.10798397]
[1734509991959,2.3155,215.96,215.92,8.10798397]
[1734509992168,2.3155,215.96,215.93,4.74565418]
[1734509992363,2.3155,215.96,215.94,4.74565418]
[1734509992559,2.18,215.99,215.95,4.74565418]
[1734509992866,89.84258597,216.06,215.97,5.79218397]
[1734509992867,2.18,216.0,215.97,5.79218397]
[1734509993061,2.18,216.01,215.98,4.74565418]
[1734509993366,2.18,216.01,215.99,4.74565418]
[1734509993563,2.18,216.01,216.0,4.74565418]
[1734509994062,4.4949,216.01,216.0,4.74565418]
[1734509994966,2.3155,215.96,215.93,5.79218397]
[1734509995165,2.3155,215.96,215.94,4.73965321]
[1734509995365,2.3155,215.96,215.95,4.73965321]
[1734509995664,2.3155,215.96,215.93,5.79218397]
[1734509995868,2.3155,215.96,215.94,4.73894929]
[1734509996165,2.3155,215.96,215.95,4.73894929]
[1734509996561,4.4955,215.96,215.95,4.73894929]
[1734509998766,4.4955,215.96,215.91,2.3159]
[1734509998767,2.18,215.96,215.91,2.3159]
[1734509998966,2.18,215.96,215.92,4.73365505]
[1734509999162,2.18,215.96,215.93,4.73365505]
[1734509999362,2.18,215.96,215.91,2.3159]
[1734509999562,2.3156,215.95,215.92,4.7335238]
[1734509999760,2.18,215.96,215.93,4.7335238]
[1734509999964,2.18,215.96,215.94,4.7335238]
[1734510000171,2.18,215.96,215.91,2.3159]
[1734510000469,2.18,215.96,215.92,4.73135588]
[1734510000764,2.18,215.96,215.91,2.3159]
[1734510000765,2.18,215.96,215.93,4.73135588]
[1734510000964,2.18,215.96,215.91,2.3159]
[1734510000965,2.3155,215.95,215.94,4.73135588]
[1734510001369,7.97218397,215.96,215.94,4.73053102]
[1734510001563,2.316,215.91,215.87,8.10858397]
[1734510001768,2.316,215.91,215.88,4.73020563]
[1734510002369,2.316,215.91,215.89,4.73020563]
[1734510002673,2.3162,215.89,215.87,5.79218397]
[1734510002871,2.3162,215.89,215.88,4.72852171]
[1734510004464,5.79218397,215.9,215.86,0.38439]
[1734510004666,2.3164,215.87,215.86,0.38439]
[1734510004866,2.18,215.91,215.86,0.38439]
[1734510005663,2.18,215.91,215.86,6.17657397]
[1734510007270,5.79218397,215.9,215.86,0.38439]
[1734510007875,2.3164,215.87,215.86,0.38439]
[1734510009280,8.10858397,215.87,215.86,0.38439]
[1734510011372,2.3164,215.87,215.86,0.38439]
[1734510011678,8.10858397,215.87,215.86,0.38439]
[1734510012881,2.317,215.82,215.77,2.3174]
[1734510013178,4.497,215.82,215.78,5.79218397]
[1734510014071,2.3164,215.87,215.8,5.79218397]
[1734510014276,2.18,215.87,215.84,5.79218397]
[1734510014475,66.86,216.03,215.86,5.79218397]
[1734510014476,5.79218397,215.93,215.86,5.79218397]
[1734510014677,2.3162,215.89,215.84,8.10888397]
[1734510014883,2.18,215.9,215.84,8.10888397]
[1734510015378,2.3164,215.88,215.84,8.10888397]
[1734510015579,2.18,215.9,215.84,8.10888397]
[1734510015971,2.3166,215.86,215.82,8.10908397]
[1734510016171,2.18,215.9,215.82,8.10908397]
[1734510017176,2.3163,215.88,215.82,8.10908397]
[1734510017377,2.18,215.9,215.82,8.10908397]
[1734510017978,2.3163,215.88,215.82,8.10908397]
[1734510018183,2.18,215.9,215.82,8.10908397]
[1734510019583,2.3166,215.85,215.82,8.10908397]
[1734510021975,2.3166,215.85,215.84,5.79218397]
[1734510023179,1.5182,215.95,215.84,5.79218397]
[1734510023385,1.5182,215.95,215.81,2.18]
[1734510023386,2.18,215.94,215.88,5.79218397]
[1734510023883,2.18,215.93,215.88,5.79218397]
[1734510024481,2.3159,215.91,215.88,5.79218397]
[1734510027186,2.3159,215.91,215.87,2.3163]
[1734510027187,2.316,215.9,215.86,8.10858397]
[1734510029391,2.3159,215.91,215.88,8.10828397]
[1734510031082,2.316,215.9,215.88,5.79218397]
[1734510031283,7.97218397,215.93,215.81,63.48600939]
[1734510031496,7.97218397,215.93,215.83,5.79218397]
[1734510031497,5.79218397,215.91,215.83,5.79218397]
[1734510031686,5.79218397,215.89,215.84,4.7219861]
[1734510031992,5.79218397,215.89,215.83,5.79218397]
[1734510031993,2.18,215.88,215.83,5.79218397]
[1734510032192,2.18,215.88,215.84,4.72369786]
[1734510032491,2.18,215.88,215.82,5.79218397]
[1734510032690,2.18,215.88,215.83,4.72689557]
[1734510032892,2.18,215.88,215.82,8.10898397]
[1734510033091,2.3165,215.86,215.83,4.72710257]
[1734510033393,2.3165,215.86,215.84,4.73070161]
[1734510033592,2.3165,215.86,215.82,8.10898397]
[1734510033992,2.3165,215.86,215.83,4.73298291]
[1734510034293,2.3165,215.86,215.84,4.73298291]
[1734510034492,2.3165,215.85,215.82,8.10898397]
[1734510034689,2.3165,215.85,215.83,4.73762765]
[1734510034888,2.3165,215.85,215.84,4.73762765]
[1734510036488,2.3165,215.85,215.84,4.74107557]
[1734510036682,2.3165,215.85,215.82,5.79218397]
[1734510036683,2.3166,215.84,215.82,5.79218397]
[1734510036888,2.3166,215.84,215.83,4.7414396]
[1734510037594,2.3169,215.81,215.79,8.10928397]
[1734510037793,2.3169,215.81,215.8,4.74246608]
[1734510039191,2.3169,215.81,215.71,2.18]
[1734510039192,5.79218397,215.82,215.67,1.5328]
[1734510039393,2.18,215.83,215.75,5.79218397]
[1734510039586,2.18,215.83,215.79,5.79218397]
[1734510039791,2.18,215.83,215.8,4.74504894]
[1734510039990,2.18,215.84,215.79,5.79218397]
[1734510040292,2.18,215.85,215.81,5.79218397]
[1734510041097,2.3166,215.84,215.81,8.10908397]
[1734510042199,2.3168,215.83,215.79,2.3171]
[1734510042495,5.79218397,215.83,215.8,4.74814357]
[1734510042693,2.3168,215.82,215.81,4.74814357]
[1734510042898,5.79218397,215.83,215.77,2.3173]
[1734510043099,5.79218397,215.83,215.78,4.7481436]
[1734510043400,5.79218397,215.83,215.79,4.7481436]
[1734510043593,5.79218397,215.83,215.76,2.3174]
[1734510043899,5.79218397,215.83,215.77,4.74969247]
[1734510044296,2.317,215.8,215.78,4.74907083]
[1734510044492,2.18,215.79,215.73,5.79218397]
[1734510044800,2.18,215.79,215.74,4.75081989]
[1734510045002,2.3174,215.77,215.75,4.75081989]
[1734510045196,2.3174,215.77,215.76,4.75081989]
[1734510045597,7.97218397,215.79,215.73,5.79218397]
[1734510045598,2.3176,215.75,215.73,5.79218397]
[1734510045998,2.3176,215.75,215.74,4.75021966]
[1734510046205,2.3176,215.75,215.74,4.75025207]
[1734510047495,2.3178,215.73,215.68,1.4475]
[1734510047699,2.3178,215.73,215.69,7.24078397]
[1734510048004,2.3178,215.73,215.69,9.55898397]
[1734510048303,2.318,215.71,215.7,4.7486308]
[1734510048696,2.318,215.71,215.67,1.5328]
[1734510048898,2.318,215.71,215.68,10.53944475]
[1734510049101,2.318,215.71,215.69,4.74726078]
[1734510049302,7.97218397,215.74,215.62,2.18]
[1734510049502,2.3181,215.7,215.67,5.79218397]
[1734510049705,2.3181,215.7,215.68,4.74512772]
[1734510049902,2.3181,215.7,215.69,4.74512772]
[1734510050400,2.3181,215.7,215.67,5.79218397]
[1734510050606,2.3181,215.7,215.68,4.74249564]
[1734510051197,4.4982,215.69,215.68,4.74249564]
[1734510051397,2.18,215.69,215.63,5.79218397]
[1734510051603,2.18,215.69,215.64,4.74065331]
[1734510051802,2.18,215.69,215.63,8.11098397]
[1734510052003,2.18,215.69,215.64,4.7406606]
[1734510052205,2.18,215.69,215.64,2.3187]
[1734510052607,2.3183,215.68,215.64,2.3187]
[1734510052806,2.3183,215.68,215.65,5.79218397]
[1734510053204,2.18,215.69,215.66,2.3185]
[1734510053611,2.18,215.69,215.65,5.79218397]
[1734510053916,2.18,215.72,215.67,5.79218397]
[1734510055511,2.18,215.72,215.68,8.11038397]
[1734510055709,2.18,215.72,215.68,5.79218397]
[1734510055904,2.18,215.72,215.64,1.5793]
[1734510056104,2.18,215.72,215.69,2.3181]
[1734510056305,2.18,215.72,215.69,8.11028397]
[1734510056703,2.18,215.72,215.69,5.79218397]
[1734510056911,2.3177,215.75,215.71,5.79218397]
[1734510057206,2.18,215.77,215.73,5.79218397]
[1734510057710,2.18,215.77,215.73,8.10988397]
[1734510059505,4.4974,215.77,215.73,8.10988397]
[1734510061213,4.4974,215.77,215.74,2.3177]
[1734510062217,4.4974,215.77,215.73,5.79218397]
[1734510062218,1.5099,215.89,215.75,5.79218397]
[1734510062513,5.79218397,215.87,215.78,5.79218397]
[1734510063219,2.18,215.86,215.78,5.79218397]
[1734510063517,2.3166,215.84,215.78,5.79218397]
[1734510063711,2.18,215.86,215.8,5.79218397]
[1734510064107,2.18,215.86,215.74,1.528]
[1734510064108,4.4964,215.86,215.81,2.3168]
[1734510064413,5.79218397,215.84,215.77,5.79218397]